Cogmind - Beta 13 @@@ ROGUE MODE // 2024.07.31 @ 08:12:27 Player: Fqbits Result: Destroyed by S-27 Virus with Autogun Performance ------------- Evolutions (3) 1500 Regions Visited (5) 1000 Robots Destroyed (104) 520 Value Destroyed (3344) 3344 Prototype IDs (10) 200 Alien Tech Used (0) 0 Bonus (160) 160 TOTAL SCORE: 6724 Bonus ------- High Alert Combat Kills 103 Entered Garrisons 200 Friendly Fire -143 Cogmind --------- Core Integrity 0/700 Matter 260/300 Energy 73/100 System Corruption 5% Temperature Cool (0) Movement Core (50) Location -7/Garrison Parts ------- > --- POWER (1) -------- (None) > --- PROPULSION (2) --- (None) > --- UTILITY (8) ------ (None) > --- WEAPON (2) ------- (None) > --- INVENTORY (5) ---- Micro Nuclear Core Transport Network Coupler Target Analyzer Relay Coupler [NC] (38) Relay Coupler [Swarmer] (57) Peak State ------------ > --- POWER ------------ Light Deuterium Engine > --- PROPULSION ------- Carbon-fiber Leg Carbon-fiber Leg > --- UTILITY ---------- Coolant Injector Large Storage Unit Trap Scanner Visual Processing Unit Targeting Computer Hardened Medium Armor Plating Hacking Suite Long-range Tractor Beam > --- WEAPON ----------- Cooled Particle Cannon Gauss Rifle > --- INVENTORY -------- Light Deuterium Engine Light Deuterium Engine Micro Nuclear Core Transport Network Coupler Matter Filter Transmission Jammer EM Pulse Gun Particle Gun Heavy Assault Rifle Heavy Assault Rifle Heavy Assault Rifle Heavy Assault Rifle Grenade Launcher [Rating: 41] Favorites ----------- Power Light Deuterium Engine Engine Light Deuterium Engine Power Core Light Nuclear Core Propulsion Light Treads Treads Light Treads Leg Carbon-fiber Leg Wheel Compact Wheel Hover Unit Gravmag System Utility Large Storage Unit Device Improved Heat Sink Storage Large Storage Unit Processor Targeting Computer Hackware Hacking Suite Protection Hardened Medium Armor Plating Weapon Heavy Assault Rifle Energy Gun Heavy EM Pulse Gun Energy Cannon Cooled Particle Cannon Ballistic Gun Heavy Assault Rifle Ballistic Cannon Flak Cannon Launcher Grenade Launcher Build | -11 -10 -9 -8 -7 -7 ------- Run | Yrd Mat Mat Mat Fac Gar Slots Evolved 6 | . . 2 2 2 . Power . | . . . . . . Propulsion . | . . . . . . Utility 6 | . . 2 2 2 . Weapon . | . . . . . . Parts Attached 108 | 8 5 33 34 5 23 Power 12 | 1 . 5 2 . 4 Engine 8 | 1 . 3 2 . 2 Core 4 | . . 2 . . 2 Reactor . | . . . . . . Propulsion 18 | 2 1 6 4 1 4 Treads 8 | . . 6 2 . . Leg 5 | . . . 2 1 2 Wheel 3 | 2 1 . . . . Hover 2 | . . . . . 2 Flight . | . . . . . . Utility 43 | 3 4 14 15 2 5 Device 22 | 2 2 10 4 1 3 Storage 5 | 1 2 1 1 . . Processor 5 | . . . 2 1 2 Hackware 2 | . . . 2 . . Protection 9 | . . 3 6 . . Artifact . | . . . . . . Weapon 35 | 2 . 8 13 2 10 Energy Gun 10 | . . 4 3 . 3 Energy Cannon 1 | . . . . 1 . Ballistic Gun 18 | 2 . 3 6 1 6 Ballistic Cannon 2 | . . . 2 . . Launcher 4 | . . 1 2 . 1 Special Weapon . | . . . . . . Impact Weapon . | . . . . . . Slashing Weapon . | . . . . . . Piercing Weapon . | . . . . . . Special Melee Weapon . | . . . . . . Unidentified Prototypes 4 | . . 1 2 1 . Parts Lost 47 | . . 9 12 . 26 Power 8 | . . 2 2 . 4 Propulsion 10 | . . 4 2 . 4 Utility 16 | . . 2 6 . 8 Weapon 13 | . . 1 2 . 10 Highest Loss Streak 14 | . . 3 5 . 14 To Critical Strikes . | . . . . . . Average Slot Usage (%) 92 | . 99 89 93 98 87 Engine 8 | . 14 7 8 7 6 Core 1 | . . 3 . . . Treads 9 | . . 18 13 . . Leg 4 | . . . 4 14 10 Wheel 4 | . 28 1 . . . Device 18 | . 13 19 15 22 22 Storage 9 | . 14 11 8 7 6 Processor 5 | . . . 4 15 16 Hackware 2 | . . . 4 7 2 Protection 7 | . . 6 16 7 2 Energy Gun 4 | . . 9 2 1 . Energy Cannon 1 | . . . . 5 2 Ballistic Gun 12 | . 28 11 10 7 11 Ballistic Cannon 1 | . . . 4 . . Naked Turns 13 | . . . . . 13 Heaviest Build 53 | 15 30 48 53 48 48 Greatest Support 42 | 32 32 40 42 30 30 Greatest Overweight (x) 13 | . 1 10 2 1 13 Average Overweight (x) . | . . . . 1 1 Largest Inventory Capacity 15 | 8 15 15 15 15 15 Average Capacity 14 | 7 13 15 14 15 14 Most Carried 15 | 8 13 14 15 15 15 Average Carried 11 | 5 10 10 11 12 12 Final Capacity 15 | 8 15 15 15 15 5 Final Carried 15 | 7 12 14 11 15 5 Class Distribution -------------------- 57% | Mutant 42% | Scavenger-Mutant Dominant Class ---------------- Mutant | -10/Materials Mutant | -9/Materials Mutant | -8/Materials Scavenger-Mutant | -7/Factory Scavenger-Mutant | -7/Garrison Resources | -11 -10 -9 -8 -7 -7 ----------- Run | Yrd Mat Mat Mat Fac Gar Matter Collected 2413 | 346 201 611 826 128 301 Remotely 1073 | 71 . 133 741 128 . Salvage Created 3606 | 201 141 1342 1129 240 553 Parts 232 | 13 14 97 65 17 26 Haulers Intercepted 2 | . . 1 1 . . Recyclers Shooed 1 | . . . 1 . . Parts Field Recycled 20 | . . 14 6 . . Retrieved Matter 131 | . . 85 46 . . Parts Self-Destructed . | . . . . . . Prevented . | . . . . . . Kills | -11 -10 -9 -8 -7 -7 ------- Run | Yrd Mat Mat Mat Fac Gar Combat Hostiles Destroyed 74 | . 4 30 23 5 12 Guns 55 | . 4 29 9 2 11 Cannons 12 | . . . 8 3 1 AOE 7 | . . 1 6 . . Classes Destroyed 14 | 2 4 3 2 1 2 Worker 5 | . . 3 2 . . Builder 7 | . 1 . 6 . . Tunneler 6 | 5 . . 1 . . Hauler 2 | . . 1 1 . . Recycler 2 | 1 . . 1 . . Operator 1 | . . . . . 1 Watcher 7 | . 1 3 3 . . Swarmer 14 | . 2 7 3 . 2 Grunt 42 | . 2 16 15 3 6 Duelist 1 | . . . . . 1 Sentry 9 | . . 7 2 . . Hunter 3 | . . . 2 1 . Programmer 4 | . . . . 1 3 Heavy 1 | . . . 1 . . Best Kill Streak 12 | 6 3 5 12 4 7 Combat Bots Only 7 | . 1 4 4 4 7 Max Kills in Single Turn 3 | 1 2 2 3 1 1 Gunslinging . | . . . . . . Exploded 3 | . . 1 3 . . Melee . | . . . . . . Uniques/NPCs Destroyed . | . . . . . . Combat | -11 -10 -9 -8 -7 -7 -------- Run | Yrd Mat Mat Mat Fac Gar Hostile Shots Fired 648 | . 41 188 155 14 250 Missed 182 | . 13 53 43 3 70 Damage Taken 7229 | . 271 1658 2265 123 2912 Core 1272 | . 68 243 256 . 705 Absorbed by Shields . | . . . . . . Redirected to Shielding 220 | . . . 220 . . Regen/Repaired (Parts) 222 | . 4 42 105 71 . Core Remaining (%) 66 | 100 72 39 53 . . Volleys Fired 273 | 11 29 96 83 10 44 Largest 2 | 2 2 2 2 2 2 Hottest 90 | 40 40 90 69 58 88 Shots Fired 533 | 22 58 181 166 20 86 Gun 454 | 22 58 180 110 10 74 Cannon 72 | . . . 50 10 12 Launcher 7 | . . 1 6 . . Special . | . . . . . . Kinetic 415 | 22 58 105 147 10 73 Thermal 67 | . . 44 . 10 13 Explosive 7 | . . 1 6 . . Electromagnetic 44 | . . 31 13 . . Robot Hit Streak 16 | 13 15 16 12 13 12 Robot Miss Streak 6 | 2 3 5 6 3 4 Penetration Max 1 | . . . . 1 . Secondary Targets 10 | . 1 4 1 . 4 Max Gunslinging Chain 1 | . 1 1 1 . 1 Shots Hit Robots 353 | 15 28 124 123 12 51 Core Hits 215 | 7 9 61 105 10 23 Critical Kills 1 | . . 1 . . . Critical Parts Destroyed . | . . . . . . Critical Strikes 5 | . . 4 1 . . Burn 2 | . . 2 . . . Destroy 1 | . . 1 . . . Corrupt 2 | . . 1 1 . . Melee Attacks . | . . . . . . Impact . | . . . . . . Slashing . | . . . . . . Piercing . | . . . . . . Sneak Attacks . | . . . . . . Combat Hostiles . | . . . . . . Follow-up Attacks . | . . . . . . Damage Inflicted 6723 | 190 353 1938 2805 351 1086 Guns 4339 | 190 345 1819 1113 181 691 Cannons 1273 | . . . 831 170 272 Explosions 1080 | . . 115 842 . 123 Melee . | . . . . . . Ramming 31 | . 8 4 19 . . Kinetic 4219 | 190 345 1034 1778 181 691 Thermal 1200 | . . 407 351 170 272 Explosive 656 | . . 115 418 . 123 Electromagnetic 617 | . . 378 239 . . Impact . | . . . . . . Slashing . | . . . . . . Piercing . | . . . . . . Highest Corruption 5 | . . . 1 1 5 Average Corruption 1 | . . . 1 1 2 Corruption Purged . | . . . . . . Corruption Blocked . | . . . . . . Effects 16 | . . . 4 4 8 Message Errors 3 | . . . . 1 2 Matter Fused 2 | . . . 1 1 . Energy Discharges 3 | . . . 1 . 2 Data Loss (minor) 3 | . . . 2 1 . Data Loss (major) 1 | . . . . 1 . Misfires 3 | . . . . . 3 Weapon Failures 1 | . . . . . 1 Overload Shots . | . . . . . . Overflow Damage 6 | . . . 6 . . Projectiles . | . . . . . . Explosions 6 | . . . 6 . . Melee . | . . . . . . Knockbacks 18 | . . . 18 . . Impact . | . . . . . . Kinetic 16 | . . . 16 . . Secondary 2 | . . . 2 . . Self-Inflicted Damage 255 | . 4 . 141 . 110 Shots 3 | . . . 2 . 1 Rammed 6 | . 1 2 3 . . Targets Rammed 7 | . 1 2 4 . . Kicked . | . . . . . . Crushed 1 | . . . 1 . . Highest Temperature 183 | . 5 15 156 10 183 Average Temperature 43 | . 5 6 44 4 72 Received Heat Transfer 2244 | . 72 630 723 45 774 Siege Activations . | . . . . . . Robots Corrupted . | . . . . . . Combat Hostiles . | . . . . . . Parts Fried 3 | . . 3 . . . Impact Corruptions . | . . . . . . Robots Melted . | . . . . . . Combat Hostiles . | . . . . . . Parts Melted 2 | . . 2 . . . Heat Transferred 1976 | . . 1184 200 222 370 Parts Sabotaged . | . . . . . . Parts Stolen . | . . . . . . Parts Stripped . | . . . . . . Power Chain Reactions 1 | . . . 1 . . Alert | -11 -10 -9 -8 -7 -7 ------- Run | Yrd Mat Mat Mat Fac Gar Peak Influence 545 | 30 122 545 482 299 357 Initial 168 | . 19 39 138 168 115 Average 238 | 11 61 305 306 152 226 Maximum Alert Level 2 | . . 2 2 1 1 Low Security (%) 42 | 100 100 18 17 89 37 Level 1 50 | . . 65 74 10 62 Level 2 7 | . . 16 8 . . Level 3 . | . . . . . . Level 4 . | . . . . . . Level 5 . | . . . . . . High Security . | . . . . . . Max Security . | . . . . . . Squads Dispatched 13 | . 1 3 5 4 . Investigation 6 | . 1 1 2 2 . Extermination 1 | . . . . 1 . Reinforcement 5 | . . 2 3 . . Assault . | . . . . . . Garrison 1 | . . . . 1 . Intercept . | . . . . . . Searches Triggered . | . . . . . . Construction Impeded 1 | . . . 1 . . Haulers Reinforced . | . . . . . . Active Scanning Responses . | . . . . . . Cargo Convoy Interrupts . | . . . . . . Stealth | -11 -10 -9 -8 -7 -7 --------- Run | Yrd Mat Mat Mat Fac Gar Distress Signals 9 | . 2 5 2 . . Communications Jammed . | . . . . . . Distress Signals . | . . . . . . Times Spotted 127 | . 14 51 30 8 24 Peak Tracking Total 10 | . 3 5 8 4 10 Tactical Retreats 12 | . 4 5 1 1 1 Traps | -11 -10 -9 -8 -7 -7 ------- Run | Yrd Mat Mat Mat Fac Gar Traps Triggered 2 | . 1 . 1 . . Indirectly . | . . . . . . Trap Hack Attempts . | . . . . . . Triggered . | . . . . . . Disarmed . | . . . . . . Reprogrammed . | . . . . . . Reused . | . . . . . . Traps Extracted . | . . . . . . Installed . | . . . . . . Triggered 1 | . . . 1 . . Machines | -11 -10 -9 -8 -7 -7 ---------- Run | Yrd Mat Mat Mat Fac Gar Machines Disabled 5 | . . . 3 . 2 Max in Single Turn 2 | . . . 1 . 2 Phase Generator 1 | . . . . . 1 Machines Repaired . | . . . . . . Machines Dismantled . | . . . . . . Machines Sabotaged . | . . . . . . Overloaded Fab Kills . | . . . . . . Hacking | -11 -10 -9 -8 -7 -7 --------- Run | Yrd Mat Mat Mat Fac Gar Machines Accessed 25 | . 3 11 6 4 1 Terminals 15 | . 2 9 2 1 1 Fabricators 1 | . . . . 1 . Repair Stations 4 | . 1 1 1 1 . Recycling Units 2 | . . . 2 . . Scanalyzers 2 | . . 1 1 . . Garrison Access 1 | . . . . 1 . Total Hacks 85 | . 7 37 25 13 3 Successful 48 | . 4 17 18 8 1 Failed 36 | . 3 19 7 5 2 Catastrophic 4 | . 1 1 1 1 . Database Lockouts 1 | . . 1 . . . Manual . | . . . . . . Terminals 50 | . 3 29 9 6 3 Fabricators 3 | . . . . 3 . Repair Stations 15 | . 4 5 4 2 . Recycling Units 5 | . . . 5 . . Scanalyzers 10 | . . 3 7 . . Garrison Access 2 | . . . . 2 . Terminal Hacks 25 | . 2 13 5 4 1 Record 13 | . . 6 3 4 . Robot Analysis 2 | . . 1 1 . . Prototype ID Bank 4 | . 1 3 . . . Emergency Access Points 1 | . . 1 . . . Alert Level 1 | . . . 1 . . Unreport Threat 1 | . . 1 . . . Locate Traps 1 | . . 1 . . . Hauler Manifests 1 | . 1 . . . . Garrison Registry 1 | . . . . . 1 Fabricator Hacks 1 | . . . . 1 . Build 1 | . . . . 1 . Repair Station Hacks 10 | . 2 2 4 2 . Scan Component 5 | . 1 1 2 1 . Repair 5 | . 1 1 2 1 . Recycling Unit Hacks 4 | . . . 4 . . Process 1 | . . . 1 . . Report Inventory 2 | . . . 2 . . Retrieve Matter 1 | . . . 1 . . Scanalyzer 7 | . . 2 5 . . Insert Component 3 | . . 1 2 . . Analyze 4 | . . 1 3 . . Garrison Access Hacks 1 | . . . . 1 . Unlock Access 1 | . . . . 1 . Unauthorized Hacks . | . . . . . . Terminals . | . . . . . . Fabricators . | . . . . . . Repair Stations . | . . . . . . Recycling Units . | . . . . . . Scanalyzers . | . . . . . . Garrison Access . | . . . . . . Data Cores Recovered . | . . . . . . Used . | . . . . . . Hacking Detections 18 | . 2 10 2 3 1 Full Trace Events 4 | . . 1 1 2 . Feedback Events 1 | . . . . 1 . Corruption 1 | . . . . 1 . Feedback Blocked . | . . . . . . Robot Schematics Acquired . | . . . . . . Robots Built 1 | . . . . 1 . Authchips . | . . . . . . Time 58 | . . . . 58 . Total Robot Build Rating 3 | . . . . 3 . Part Schematics Acquired 3 | . . 1 2 . . Parts Built . | . . . . . . Authchips . | . . . . . . Time . | . . . . . . Total Part Build Rating . | . . . . . . Parts Repaired 5 | . 1 1 2 1 . Time 172 | . 38 38 58 38 . Parts Recycled . | . . . . . . Recycled Matter 149 | . . . 149 . . Retrieved Matter 295 | . . . 295 . . Retrieved Components . | . . . . . . Parts Scanalyzed 3 | . . 1 2 . . Part Schematics Acquired 3 | . . 1 2 . . Parts Damaged . | . . . . . . Bothacking | -11 -10 -9 -8 -7 -7 ------------ Run | Yrd Mat Mat Mat Fac Gar Used RIF Installer . | . . . . . . Robots Hacked . | . . . . . . Non-combat . | . . . . . . Combat . | . . . . . . Robot Hacks Applied . | . . . . . . Relay Couplers Released . | . . . . . . Fabnet Peak Effective % . | . . . . . . Robots Rewired . | . . . . . . Allies Hacked . | . . . . . . Hacks Repelled . | . . . . . . Allies | -11 -10 -9 -8 -7 -7 -------- Run | Yrd Mat Mat Mat Fac Gar Total Allies 1 | . . . . 1 . Largest Group 1 | . . . . 1 1 Highest-Rated Group 26 | . . . . 26 22 Highest-Rated Ally 26 | . . . . 26 22 Total Orders . | . . . . . . Ally Attacks . | . . . . . . Total Damage . | . . . . . . Kills . | . . . . . . Allies Corrupted . | . . . . . . Allies Melted . | . . . . . . Intel | -11 -10 -9 -8 -7 -7 ------- Run | Yrd Mat Mat Mat Fac Gar Robot Analysis Total 2 | . . 1 1 . . Derelict Logs Recovered . | . . . . . . Drone Launches . | . . . . . . Drone Recoveries . | . . . . . . Exploration | -11 -10 -9 -8 -7 -7 ------------- Run | Yrd Mat Mat Mat Fac Gar Turns Passed 5612 | 142 677 1995 1353 752 693 Spaces Moved 2427 | 94 492 773 441 322 305 Core 47 | 15 . 1 . . 31 Treads 1011 | . . 684 327 . . Legs 633 | . . . 114 322 197 Wheels 659 | 79 492 88 . . . Hover 77 | . . . . . 77 Flight . | . . . . . . Fastest Speed 50 | 50 100 105 120 190 50 Average Speed 172 | 92 102 196 218 190 167 Slowest Speed 700 | 100 105 550 305 190 700 Overloaded Moves . | . . . . . . Propulsion Burnouts . | . . . . . . Robots Hopped . | . . . . . . Cave-ins Triggered . | . . . . . . Exploration Rate (%) 36 | 5 61 77 35 8 34 Regions Visited 5 Branch Regions . Pre-discovered Areas . | . . . . . . Known Exits Taken 1 | . . . . 1 . Unknown Exits Taken 4 | 1 1 1 1 . . Scrap Searched . | . . . . . . Spaces Dug . | . . . . . . Terrain Destroyed 60 | . . 5 44 1 10 Melee . | . . . . . . Projectile 1 | . . . . 1 . AOE 59 | . . 5 44 . 10 Terrain Rammed . | . . . . . . Walls Destroyed . | . . . . . . Machines Disabled . | . . . . . . Actions | -11 -10 -9 -8 -7 -7 --------- Run | Yrd Mat Mat Mat Fac Gar Total 3328 | 127 605 1076 669 444 407 Wait 352 | . 67 111 60 97 17 Move 2422 | 93 491 772 440 321 305 Hop . | . . . . . . Pick Up 115 | 14 8 36 33 9 15 Fast Attach 1 | . . . 1 . . Attach 82 | 8 2 23 24 3 22 Detach 7 | 1 1 4 1 . . Swap 25 | . 3 10 9 2 1 Drop 44 | . 3 22 14 2 3 Fire 273 | 11 29 96 83 10 44 Melee . | . . . . . . Ram 1 | . 1 . . . . Kick . | . . . . . . Crush 6 | . . 2 4 . . Escape Stasis . | . . . . . . Rewire . | . . . . . . Trap . | . . . . . . Miscellaneous . | . . . . . . Route ------- -11/Scrapyard -10/Materials (discovered 4 exits: *Mat x2 / [*Min] / [Sub]) -9/Materials (discovered 3 exits: *Mat x2 / [*Min]) -8/Materials -7/Factory (discovered 2 exits: [*Low] / Gar) -7/Garrison (discovered 3 exits: [Fac x3]) History --------- Turn | Location | Event 8 | -11/Scrapyard | Discovered new exit (range 16) 143 | -11/Scrapyard | Entered Materials 288 | -10/Materials | Discovered new exit (range 11) 328 | -10/Materials | Build established: Mutant 379 | -10/Materials | Repaired Imp. Terrain Scanner 476 | -10/Materials | Discovered new exit (range 16) 634 | -10/Materials | Discovered new exit (range 9) 715 | -10/Materials | Discovered new exit (range 16) 820 | -10/Materials | Entered another Materials area 820 | -9/Materials | Evolved 2 slots: Utility x2 1129 | -9/Materials | Central database locked down 1275 | -9/Materials | Discovered new exit (range 12) 1504 | -9/Materials | Core integrity fell below 50% 1526 | -9/Materials | Lost 3 parts (1p2n) 1775 | -9/Materials | Discovered new exit (range 16) 1811 | -9/Materials | Build established: Scavenger-Mutant 1954 | -9/Materials | Repaired Lgt. Nuclear Core 2445 | -9/Materials | Build established: Mutant 2769 | -9/Materials | Discovered new exit (range 15) 2815 | -9/Materials | Entered another Materials area 2815 | -8/Materials | Evolved 2 slots: Utility x2 3768 | -8/Materials | Lost 3 parts (1p1n1u) 3843 | -8/Materials | Lost 5 parts (1n3u1w) 3975 | -8/Materials | Repaired Lrg. Storage Unit 4007 | -8/Materials | Repaired Hvy. Assault Rifle 4048 | -8/Materials | Discovered new exit (range 3) 4168 | -8/Materials | Entered Factory 4168 | -7/Factory | Evolved 2 slots: Utility x2 4303 | -7/Factory | Discovered new exit (range 7) 4334 | -7/Factory | Build established: Scavenger-Mutant 4436 | -7/Factory | Fabricated O-24 Administrator? 4594 | -7/Factory | Repaired Carbon-fiber Leg 4892 | -7/Factory | Identified exit to Garrison 4920 | -7/Factory | Entered Garrison 4920 | -7/Garrison | Accompanied by 1 ally 4967 | -7/Garrison | Discovered new exit (range 65) 4967 | -7/Garrison | Discovered new exit (range 69) 4967 | -7/Garrison | Discovered new exit (range 40) 5138 | -7/Garrison | Triggered checkpoint 5156 | -7/Garrison | Triggered checkpoint 5212 | -7/Garrison | Lost 9 parts (1p2n4u2w) 5223 | -7/Garrison | Destroyed 7 combat bots 5356 | -7/Garrison | Phase Generator disabled 5584 | -7/Garrison | Core integrity fell below 50% 5600 | -7/Garrison | Triggered checkpoint 5600 | -7/Garrison | Released all parts (7) 5601 | -7/Garrison | Core integrity fell below 20% 5613 | -7/Garrison | Destroyed by S-27 Virus with Autogun Last Messages --------------- 05577_ Imp. Heat Sink destroyed. 05579_ 6HOHHW#E9VABJCGMZQ,KK&UHVBSDL=QU 05579_ Trap Scanner destroyed. 05580_ Grenade Launcher destroyed. 05582_ Lgt. Deuterium Engine destroyed. 05586_ Gravmag System destroyed. 05586_ Particle Gun destroyed. 05586_ Hvy. Assault Rifle destroyed. 05588_ Coolant Injector destroyed. 05594_ Shock Rifle destroyed. 05597_ EM Pulse Gun destroyed. 05597_ Mic. Nuclear Core destroyed. 05599_ Target Analyzer destroyed. 05600_ Released Target Analyzer. 05600_ Released Transmission Jammer. 05600_ Released Visual Processing Unit. 05600_ Released Lrg. Storage Unit. 05600_ Released Targeting Computer. 05600_ Released Mic. Nuclear Core. 05600_ Released Gauss Rifle. Map ----- +----------------------------------------------------+ | ?????????????????#" #???# "#????# #?? | | ?????????????????#"# #???# #"#????# ! #?? | | ?????????????????### #???# ###????# ! #?? | | ???????????????????# #???# #??????# ! #?? | | ???????????????????# #???# #??????# [ #?? | | ?????????????#####?# #???# #?###### #?? | | ?????????????#!!!### #???# ###!!!## [ #?? | | ?????????????# #???# * #?? | | ?????????????####### #???# ######## ! #?? | | ???????????????????# #???# #??????# [ #?? | | ???????????????????# #???# #??????############?? | | ???????????????????# #???# #???????????????????? | | ?????????????????### #???# ###?????????????????? | | ???????????####### " ##### " #######???????????? | | ???????????# # " # " # #???????????? | | ???????????# ##### " ##### " ##### #???#####???? | | ???????????# #???### #???# ###???# #???# #???? | | ?????????### ####### ##### ############# < #???? | | ###??????# #???? | | #?????## #???? | | #?????#T #???? | | #?????## ####### ########################???? | | #??????# #?????# #??????????????????????????? | | #??????# #?????# ########???????????????????? | | #??????# ####### ##^""""#???????????????????? | | #??????# s s ^@ "#???????????????????? | | ######## ####### ##^""""#???????????????????? | | ## ## #?????# ########???????????????????? | | ##""""## #?????# #???#########??????????????? | | ####### #####!!! ]]]#??????????????? | | #??????????????? | | #??????????????? | | ## ## ############## #??????????????? | | ## ## ###?????????#] #??????????????? | | #?????????#] #??????????????? | | #######???##########??????????????? | | #???????????????????????????? | | ##### #????????????#########??????? | | ^^## ## ###???# #????????????# ! !!#??????? | | ^^## ## *####### ##???????????# # # #??????? | | !!| = #???????????## # # ##??????? | | [! =%[ #???????????# + + #??????? | | ###*###* #???????????#! # #! #??????? | | ## ## #### #?# #?????########## #####?????? | | ## ## # ## ### #?????# ! #?? ####??? | | ## # ### #?????# ######## #?# ###? | | ## # #?# ### #### #????##+##?????# ### "#? | | # # #?# #?# #??#%*#????#! !#?????# #? | | #### #?# #?# #??#[ #????#! !#?????# ## | | #??# #?# #?# #??# %#????#! !#?????# ## | +----------------------------------------------------+ Best States ------------- Heat Dissipation 64 Coolant Potential 65 Energy Generation 16 Energy Capacity 290 Matter Stores 300 Matter Capacity 300 Sight Range 18 Robot Scan Range 14 Terrain Scan Range 16 Terrain Scan Density 10 ECM Strength 3 Jamming Range 12 Armor Coverage 450 Propulsion Shielding 66 Weapon Shielding 66 Evasion (%) 50 Targeting Accuracy 5 Target Analysis 7 Recoil Reduction 2 Matter Filtering 30 Offensive Hacking 10 Defensive Hacking 10 Item Schematics ----------------- Transport Network Coupler | -9/Materials | Scanalyzed Trap Scanner | -8/Materials | Scanalyzed Hrd. Medium Armor Plating | -8/Materials | Scanalyzed Robot Schematics ------------------ None Fabricated ------------ O-24 Administrator | x1 | -7/Factory | Preloaded Alien Tech Used ----------------- None Achievements -------------- Backstab My Command Is Your Wish Use The Force Challenges ------------ None Game ------ Seed ScanRestorationDesublimator Manual? 0 Play Time 01:21:05 Cumulative 15.8 hours Start 2024.07.31 @ 06:00:22 End 2024.07.31 @ 08:12:27 Sessions 1 Manual Loads 0 Difficulty Rogue Special Mode None Game No. 26 Rogue 26 Adventurer 0 Explorer 0 Win Type - Total 0 Types 0/0/0/0/0/0/0/0/0 Lore% 16 Gallery% 21 Achievement% 21 Wizard Run 0 Options --------- Layout 1 ASCII 0 Keyboard 0 Movement Numpad Keybinds 0 Fullscreen 2 Font 32/SmallcapsGlow Map View 77x35 Zoom Use 0% Tactical HUD 1 Map Filters NONE Filters NONE Steam 1 RUN: 27965687-95db-468a-94fc-cabcfeb7627d